[Event "Allsvenskan 24-25"]
[Site "Linköping, Sweden"]
[Date "2024.12.01"]
[Round "5.7"]
[White "Danielsson, Robert"]
[Black "Nagy, Mate 2009"]
[Result "1/2-1/2"]
[TimeControl "90 min/40 moves + 30 min + 30 sec from move 1"]
[WhiteElo "1972"]
[BlackElo "1871"]

1. d4 {[%clk 01:30:44]} {[%emt 00:00:15]} Nf6 {[%clk 01:30:42]} {[%emt
00:00:20]} 2. c4 {[%clk 01:30:44]} {[%emt 00:00:29]} g6 {[%clk 01:31:03]}
{[%emt 00:00:09]} 3. Nc3 {[%clk 01:30:59]} {[%emt 00:00:15]} d5 {[%clk
01:31:28]} {[%emt 00:00:04]} 4. cxd5 {[%clk 01:31:10]} {[%emt 00:00:19]} Nxd5
{[%clk 01:31:52]} {[%emt 00:00:06]} 5. g3 {[%clk 01:31:29]} {[%emt 00:00:11]}
Bg7 {[%clk 01:30:34]} {[%emt 00:01:48]} 6. Bg2 {[%clk 01:31:13]} {[%emt
00:00:45]} Nxc3 {[%clk 01:30:59]} {[%emt 00:00:06]} 7. bxc3 {[%clk 01:31:36]}
{[%emt 00:00:07]} c5 {[%clk 01:30:54]} {[%emt 00:00:36]} 8. e3 {[%clk
01:31:47]} {[%emt 00:00:19]} Qa5 {[%clk 01:29:35]} {[%emt 00:01:49]} 9. Qd2
{[%clk 01:30:58]} {[%emt 00:01:19]} O-O {[%clk 01:29:17]} {[%emt 00:00:48]} 10.
Ne2 {[%clk 01:27:50]} {[%emt 00:03:39]} Nc6 {[%clk 01:25:47]} {[%emt 00:04:00]}
11. O-O {[%clk 01:27:25]} {[%emt 00:00:55]} Rd8 {[%clk 01:24:23]} {[%emt
00:01:54]} 12. Qb2 {[%clk 01:25:40]} {[%emt 00:02:15]} Qc7 {[%clk 01:23:44]}
{[%emt 00:01:09]} 13. Qa3 {[%clk 01:10:57]} {[%emt 00:15:12]} cxd4 {[%clk
01:16:33]} {[%emt 00:07:42]} 14. cxd4 {[%clk 01:11:17]} {[%emt 00:00:10]} Be6
{[%clk 01:14:38]} {[%emt 00:02:25]} 15. Bd2 {[%clk 00:50:08]} {[%emt 00:21:39]}
Bc4 {[%clk 01:09:24]} {[%emt 00:05:44]} 16. Rfe1 {[%clk 00:49:55]} {[%emt
00:00:44]} e5 {[%clk 01:01:04]} {[%emt 00:08:49]} 17. Rac1 {[%clk 00:42:46]}
{[%emt 00:07:40]} Bxe2 {[%clk 00:57:50]} {[%emt 00:03:44]} 18. Rxe2 {[%clk
00:43:10]} {[%emt 00:00:06]} exd4 {[%clk 00:56:17]} {[%emt 00:02:03]} 19. exd4
{[%clk 00:38:03]} {[%emt 00:05:37]} Bxd4 {[%clk 00:54:57]} {[%emt 00:01:50]} 20.
Bg5 {[%clk 00:35:56]} {[%emt 00:02:38]} Re8 {[%clk 00:52:20]} {[%emt 00:03:07]}
21. Rec2 {[%clk 00:33:27]} {[%emt 00:02:59]} Qe5 {[%clk 00:38:09]} {[%emt
00:14:40]} 22. Bf4 {[%clk 00:29:56]} {[%emt 00:04:01]} Qg7 {[%clk 00:37:03]}
{[%emt 00:01:36]} 23. Rb1 {[%clk 00:27:20]} {[%emt 00:03:06]} g5 {[%clk
00:35:05]} {[%emt 00:02:28]} 24. Be3 {[%clk 00:23:03]} {[%emt 00:04:47]} Bxe3
{[%clk 00:28:01]} {[%emt 00:07:34]} 25. fxe3 {[%clk 00:23:26]} {[%emt
00:00:07]} Qg6 {[%clk 00:22:01]} {[%emt 00:06:30]} 26. Rcb2 {[%clk 00:20:37]}
{[%emt 00:03:20]} Ne5 {[%clk 00:17:52]} {[%emt 00:04:38]} 27. Rxb7 {[%clk
00:11:11]} {[%emt 00:09:55]} Nc4 {[%clk 00:16:17]} {[%emt 00:02:06]} 28. Qa4
{[%clk 00:11:16]} {[%emt 00:00:25]} Nxe3 {[%clk 00:12:48]} {[%emt 00:04:00]} 29.
Re1 {[%clk 00:11:35]} {[%emt 00:00:10]} Re6 {[%clk 00:11:19]} {[%emt 00:01:59]}
30. Rxa7 {[%clk 00:10:49]} {[%emt 00:01:16]} Rd8 {[%clk 00:10:38]} {[%emt
00:01:11]} 31. Ra8 {[%clk 00:10:21]} {[%emt 00:00:59]} Rxa8 {[%clk 00:10:41]}
{[%emt 00:00:27]} 32. Qxa8+ {[%clk 00:10:45]} {[%emt 00:00:05]} Kg7 {[%clk
00:11:07]} {[%emt 00:00:06]} 33. Qa3 {[%clk 00:05:52]} {[%emt 00:05:23]} Nxg2
{[%clk 00:06:15]} {[%emt 00:05:22]} 34. Rxe6 {[%clk 00:06:16]} {[%emt
00:00:06]} Qxe6 {[%clk 00:06:22]} {[%emt 00:00:23]} 35. Qb2+ {[%clk 00:06:26]}
{[%emt 00:00:20]} f6 {[%clk 00:05:37]} {[%emt 00:01:15]} 36. Kxg2 {[%clk
00:06:45]} {[%emt 00:00:12]} Qe4+ {[%clk 00:05:54]} {[%emt 00:00:12]} 37. Kf2
{[%clk 00:05:13]} {[%emt 00:02:03]} Qh1 {[%clk 00:05:34]} {[%emt 00:00:49]} 38.
Ke3 {[%clk 00:05:37]} {[%emt 00:00:06]} Qe1+ {[%clk 00:05:44]} {[%emt
00:00:20]} 39. Kd3 {[%clk 00:03:07]} {[%emt 00:03:00]} Qf1+ {[%clk 00:04:42]}
{[%emt 00:01:32]} 40. Kc3 {[%clk 00:01:33]} {[%emt 00:02:04]} Qf3+ {[%clk
00:04:40]} {[%emt 00:00:32]} 41. Kb4 {[%clk 00:01:23]} {[%emt 00:00:41]} Qb7+
{[%clk 00:04:15]} {[%emt 00:00:55]} 42. Kc3 {[%clk 00:01:27]} {[%emt 00:00:26]}
Qf3+ {[%clk 00:04:30]} {[%emt 00:00:15]} 43. Kb4 {[%clk 00:01:46]} {[%emt
00:00:11]} 1/2-1/2

[Event "Allsvenskan 24-25"]
[Site "Linköping, Sweden"]
[Date "2024.12.01"]
[Round "5.8"]
[White "Qwarfort, Fredrik"]
[Black "Lindblad, Tomas"]
[Result "0-1"]
[TimeControl "90 min/40 moves + 30 min + 30 sec from move 1"]
[WhiteElo "1830"]
[BlackElo "1962"]

1. d4 {[%clk 01:30:56]} {[%emt 00:00:03]} d5 {[%clk 01:30:50]} {[%emt
00:00:10]} 2. c4 {[%clk 01:31:17]} {[%emt 00:00:11]} c6 {[%clk 01:31:12]}
{[%emt 00:00:08]} 3. Nf3 {[%clk 01:31:19]} {[%emt 00:00:28]} Nf6 {[%clk
01:31:19]} {[%emt 00:00:22]} 4. e3 {[%clk 01:28:53]} {[%emt 00:02:57]} Bf5
{[%clk 01:28:51]} {[%emt 00:02:58]} 5. Nc3 {[%clk 01:28:35]} {[%emt 00:00:49]}
e6 {[%clk 01:28:28]} {[%emt 00:00:53]} 6. cxd5 {[%clk 01:24:18]} {[%emt
00:04:47]} exd5 {[%clk 01:28:25]} {[%emt 00:00:33]} 7. Bd3 {[%clk 01:24:05]}
{[%emt 00:00:43]} Bg6 {[%clk 01:24:12]} {[%emt 00:04:43]} 8. Ne5 {[%clk
01:13:23]} {[%emt 00:11:12]} Nbd7 {[%clk 01:17:54]} {[%emt 00:06:47]} 9. Nxg6
{[%clk 01:12:36]} {[%emt 00:01:18]} hxg6 {[%clk 01:17:25]} {[%emt 00:00:57]} 10.
Bd2 {[%clk 01:11:49]} {[%emt 00:01:19]} Bd6 {[%clk 01:14:21]} {[%emt 00:03:34]}
11. h3 {[%clk 01:12:09]} {[%emt 00:00:10]} Qe7 {[%clk 01:06:47]} {[%emt
00:08:03]} 12. Qe2 {[%clk 01:02:20]} {[%emt 00:10:20]} O-O {[%clk 00:54:38]}
{[%emt 00:12:38]} 13. O-O {[%clk 01:01:09]} {[%emt 00:01:41]} Rfe8 {[%clk
00:50:32]} {[%emt 00:04:36]} 14. Rfe1 {[%clk 01:00:00]} {[%emt 00:01:40]} a6
{[%clk 00:49:20]} {[%emt 00:01:42]} 15. Rac1 {[%clk 00:59:47]} {[%emt
00:00:43]} Rac8 {[%clk 00:48:00]} {[%emt 00:01:50]} 16. a3 {[%clk 00:55:19]}
{[%emt 00:04:58]} c5 {[%clk 00:39:20]} {[%emt 00:09:09]} 17. dxc5 {[%clk
00:54:27]} {[%emt 00:01:22]} Bxc5 {[%clk 00:38:31]} {[%emt 00:01:19]} 18. e4
{[%clk 00:37:57]} {[%emt 00:17:00]} dxe4 {[%clk 00:33:53]} {[%emt 00:05:08]} 19.
Nxe4 {[%clk 00:37:55]} {[%emt 00:00:33]} Nxe4 {[%clk 00:32:30]} {[%emt
00:01:52]} 20. Qxe4 {[%clk 00:33:44]} {[%emt 00:04:41]} Qd6 {[%clk 00:26:19]}
{[%emt 00:06:41]} 21. Qf3 {[%clk 00:11:42]} {[%emt 00:22:33]} Ne5 {[%clk
00:25:31]} {[%emt 00:01:17]} 22. Rxe5 {[%clk 00:12:07]} {[%emt 00:00:05]} Qxe5
{[%clk 00:25:18]} {[%emt 00:00:43]} 23. Bc3 {[%clk 00:09:17]} {[%emt 00:03:20]}
Bd4 {[%clk 00:17:51]} {[%emt 00:07:57]} 24. Re1 {[%clk 00:09:03]} {[%emt
00:00:44]} Qf6 {[%clk 00:18:02]} {[%emt 00:00:18]} 25. Qxf6 {[%clk 00:03:12]}
{[%emt 00:06:21]} Rxe1+ {[%clk 00:17:46]} {[%emt 00:00:46]} 26. Bxe1 {[%clk
00:03:33]} {[%emt 00:00:08]} gxf6 {[%clk 00:17:50]} {[%emt 00:00:26]} 0-1